bitfinex/quotes_SOLUSD_20220208
["timestamp","ask_amount","ask_price","bid_price","bid_amount"]
[1644339321268,67.78364108,111.28,111.22,61.84045539]
[1644339323870,19.4864,111.28,111.22,61.84045539]
[1644339324171,6.0,111.28,111.22,61.84045539]
[1644339324569,10.494,111.32,111.22,61.84045539]
[1644339324768,4.494,111.32,111.22,61.84045539]
[1644339324968,44.51932639,111.31,111.22,61.84045539]
[1644339325268,42.25690535,111.29,111.22,61.84045539]
[1644339325669,6.0,111.29,111.22,61.84045539]
[1644339326068,19.4828,111.31,111.22,61.84045539]
[1644339326272,19.7328,111.31,111.22,61.84045539]
[1644339326669,47.0531606,111.3,111.22,61.84045539]
[1644339326868,51.5461606,111.3,111.22,61.84045539]
[1644339327069,57.7961606,111.3,111.22,61.84045539]
[1644339328272,71.2801606,111.3,111.22,13.4859]
[1644339328472,68.89491609,111.3,111.21,13.4873]
[1644339328774,66.7871606,111.3,111.21,13.4873]
[1644339329171,66.7871606,111.3,111.22,47.96366167]
[1644339330076,66.7871606,111.3,111.23,13.4848]
[1644339330274,66.7871606,111.3,111.24,25.15699041]
[1644339330473,19.734,111.3,111.24,25.15699041]
[1644339330676,48.03952108,111.33,111.24,35.88699041]
[1644339330875,48.0065,111.33,111.24,38.12011193]
[1644339331075,48.0065,111.33,111.24,51.60381193]
[1644339331976,0.03302108,111.34,111.24,51.60381193]
[1644339332277,4.492,111.4,111.24,245.06381193]
[1644339332278,59.54719757,111.4,111.24,245.06381193]
[1644339332477,0.03302108,111.34,111.24,245.06381193]
[1644339332680,42.7546169,111.39,111.24,245.06381193]
[1644339332878,42.7546169,111.39,111.25,0.44]
[1644339332879,0.03302108,111.34,111.25,0.44]
[1644339333176,42.72159582,111.39,111.28,98.60174511]
[1644339333177,0.03302108,111.38,111.28,98.60174511]
[1644339333380,42.7546169,111.39,111.29,10.73]
[1644339333579,0.03302108,111.38,111.3,27.90890697]
[1644339333781,0.03302108,111.38,111.3,28.15890697]
[1644339333978,0.03302108,111.41,111.31,10.73]
[1644339334178,0.03302108,111.42,111.31,12.96245107]
[1644339334378,0.03302108,111.42,111.32,1.98245107]
[1644339334580,0.03302108,111.45,111.33,10.73]
[1644339334782,0.03302108,111.42,111.33,10.73]
[1644339334978,4.489,111.41,111.33,10.73]
[1644339335177,8.10775549,111.41,111.33,10.73]
[1644339335382,53.02335549,111.41,111.33,10.73]
[1644339335579,4.489,111.4,111.33,10.73]
[1644339335779,42.2424674,111.41,111.34,47.7775479]
[1644339335978,0.25,111.4,111.34,47.7775479]
[1644339336178,4.52202108,111.42,111.34,47.7775479]
[1644339336382,4.489,111.42,111.33,10.73]
[1644339336578,10.739,111.42,111.3,10.73]
[1644339336779,24.73722108,111.41,111.3,10.73]
[1644339336978,13.475,111.38,111.3,10.73]
[1644339337179,19.725,111.38,111.3,10.73]
[1644339337386,24.215,111.38,111.31,48.06933725]
[1644339337580,45.84376487,111.39,111.31,48.06933725]
[1644339337779,45.84376487,111.39,111.33,25.05131483]
[1644339338179,46.09376487,111.39,111.32,10.73]
[1644339338780,4.49,111.38,111.32,10.73]
[1644339339178,45.05275896,111.37,111.32,10.73]
[1644339339579,45.30275896,111.37,111.32,10.73]
[1644339339779,45.30275896,111.37,111.3,49.97489521]
[1644339340981,49.79275896,111.37,111.3,13.4742]
[1644339341181,63.26835896,111.37,111.29,24.2056]
[1644339341384,58.77835896,111.37,111.29,24.2056]
[1644339341983,58.77835896,111.37,111.29,64.38713279]
[1644339342183,58.77835896,111.37,111.29,50.91153279]
[1644339342585,63.26935896,111.37,111.29,50.91153279]
[1644339342884,63.01935896,111.37,111.29,50.91153279]
[1644339343085,63.01935896,111.37,111.29,51.16153279]
[1644339343486,58.52835896,111.37,111.29,51.16153279]
[1644339343686,0.03302108,111.38,111.29,53.15323704]
[1644339343886,13.4743,111.39,111.29,53.15323704]
[1644339344091,0.03302108,111.39,111.29,66.62883704]
[1644339344289,24.77582108,111.4,111.29,66.62883704]
[1644339344488,0.03302108,111.39,111.29,72.62883704]
[1644339344689,24.77582108,111.4,111.29,86.84220536]
[1644339344890,0.03302108,111.39,111.29,86.84220536]
[1644339345090,24.77582108,111.4,111.29,86.84220536]
[1644339345293,0.28302108,111.4,111.29,86.84220536]
[1644339345692,0.03302108,111.4,111.29,287.58874831]
[1644339346095,0.03302108,111.43,111.29,287.58874831]
[1644339346292,0.03302108,111.4,111.29,287.58874831]
[1644339346494,0.03302108,111.42,111.29,287.58874831]
[1644339346697,4.49,111.43,111.29,287.58874831]
[1644339346895,48.29506585,111.42,111.29,287.58874831]
[1644339347092,0.03302108,111.41,111.29,287.58874831]
[1644339348594,4.52302108,111.44,111.29,287.58874831]
[1644339348794,4.77302108,111.44,111.29,287.58874831]
[1644339349297,48.13533767,111.43,111.29,287.58874831]
[1644339349497,0.03302108,111.42,111.29,287.58874831]
[1644339349796,0.03302108,111.42,111.29,296.65643472]
[1644339351196,0.03302108,111.42,111.29,162.58643472]
[1644339351398,0.03302108,111.42,111.33,13.4649]
[1644339351598,0.03302108,111.43,111.34,53.39]
[1644339351801,0.03302108,111.45,111.34,80.57507257]
[1644339352020,0.03302108,111.46,111.35,1.99170425]
[1644339352197,0.03302108,111.46,111.36,15.218]
[1644339352398,37.67719148,111.46,111.36,48.15711929]
[1644339352597,37.67719148,111.46,111.38,38.65885359]
[1644339352799,37.8941704,111.46,111.4,34.46179849]
[1644339353197,42.3811704,111.46,111.4,34.46179849]
[1644339353402,42.3811704,111.46,111.41,10.73]
[1644339354201,4.737,111.46,111.41,24.1914]
[1644339354702,0.25,111.46,111.41,24.1914]
[1644339355104,4.486,111.46,111.36,6.0]
[1644339355402,29.5971,111.46,111.36,50.8795]
[1644339355603,35.5971,111.46,111.35,10.73]
[1644339355805,4.488,111.45,111.35,10.73]
[1644339356004,40.71813402,111.44,111.36,34.73303587]
[1644339356204,40.96813402,111.44,111.38,38.38761621]
[1644339356603,40.96813402,111.44,111.37,24.1954]
[1644339356805,45.45613402,111.44,111.37,24.1954]
[1644339357205,96.10775549,111.43,111.33,13.5051]
[1644339357506,13.4731,111.4,111.27,13.2598]
[1644339357704,42.48515687,111.39,111.3,34.5358938]
[1644339357904,42.51817795,111.39,111.3,34.5358938]
[1644339358106,10.49,111.39,111.3,34.5358938]
[1644339358304,6.0,111.39,111.3,34.5358938]
[1644339358505,24.2129,111.39,111.3,34.5358938]
[1644339359104,38.86629274,111.38,111.3,34.5358938]
[1644339359305,39.11629274,111.38,111.3,34.5358938]
[1644339359726,45.11629274,111.38,111.3,34.5358938]
[1644339360131,13.4771,111.36,111.26,24.2084]
[1644339360328,4.491,111.35,111.26,24.4584]
[1644339360527,6.28302108,111.36,111.26,24.4584]
[1644339360726,6.0,111.35,111.26,24.4584]
[1644339360926,4.492,111.34,111.26,24.4584]
[1644339361128,36.76458249,111.33,111.26,24.2084]
[1644339361328,4.492,111.32,111.22,10.73]
[1644339361533,0.03302108,111.32,111.24,1.9903565]
[1644339361830,51.0,111.3,111.16,79.45939114]
[1644339362035,0.28302108,111.32,111.16,13.5138]
[1644339362229,0.28302108,111.32,111.12,4.64603738]
[1644339362230,6.0,111.3,111.12,7.19268659]
[1644339362431,60.64697431,111.29,111.15,93.74696544]
[1644339362732,36.10613689,111.27,111.16,10.73]
[1644339362933,46.9944,111.28,111.17,41.84928517]
[1644339363133,0.03302108,111.33,111.18,10.73]
[1644339363330,0.03302108,111.33,111.18,11.17]
[1644339363532,0.03302108,111.33,111.18,30.2191]
[1644339363933,46.34899424,111.33,111.19,48.66546344]
[1644339364132,52.34899424,111.33,111.2,10.73]
[1644339364334,4.493,111.32,111.21,47.72019089]
[1644339364536,43.94530769,111.31,111.2,6.0]
[1644339364733,4.494,111.3,111.14,10.73]
[1644339364933,4.494,111.3,111.1,13.5866]
[1644339364934,52.8212,111.3,111.1,13.5866]
[1644339365233,71.90895549,111.3,111.1,13.5866]
[1644339365541,38.75132874,111.29,111.11,48.12930092]
[1644339365734,43.52517878,111.27,111.14,13.4926]
[1644339365935,2.50007649,111.32,111.29,1.9713278]
[1644339366137,2.495,111.31,111.29,1.9713278]
[1644339366334,2.50007649,111.38,111.25,10.73]
[1644339366533,0.03302108,111.33,111.25,10.98]
[1644339366733,0.03302108,111.37,111.26,1.9713278]
[1644339366934,59.47207233,111.38,111.27,54.89531125]
[1644339367137,0.03302108,111.37,111.27,65.62531125]
[1644339367335,0.03302108,111.37,111.29,41.24782429]
[1644339367535,45.99687233,111.38,111.31,38.7097887]
[1644339367733,46.02989341,111.38,111.32,10.73]
[1644339367933,69.85022108,111.4,111.33,61.3411225]
[1644339368137,75.8172,111.4,111.33,72.0711225]
[1644339368335,10.491,111.41,111.33,74.28374515]
[1644339368537,10.491,111.41,111.34,1.96262265]
[1644339368736,10.491,111.41,111.35,10.73]
[1644339369034,10.491,111.41,111.35,51.82162414]
[1644339369234,0.03302108,111.43,111.37,35.0]
[1644339369436,0.03302108,111.45,111.38,10.73]
[1644339369637,0.03302108,111.46,111.39,10.73]
[1644339369840,0.03302108,111.48,111.39,10.91979589]
[1644339370038,34.34108652,111.48,111.4,41.86921522]
[1644339370236,34.34108652,111.48,111.41,10.73]
[1644339370433,45.0053601,111.46,111.41,10.73]
[1644339370639,45.0053601,111.46,111.4,41.86921522]
[1644339370834,45.2553601,111.46,111.38,55.6053]
[1644339371034,45.2553601,111.46,111.38,10.73]
[1644339371334,4.487,111.45,111.27,211.3709]
[1644339371541,13.4681,111.44,111.32,44.8936]
[1644339371733,13.75112108,111.44,111.33,10.73]
[1644339371933,36.65077982,111.43,111.34,10.73]
[1644339372138,42.65077982,111.43,111.35,36.96399126]
[1644339372339,36.75730044,111.41,111.35,47.69399126]
[1644339372535,36.75730044,111.41,111.37,42.62637025]
[1644339372735,6.25,111.43,111.37,42.62637025]
[1644339372937,53.06302108,111.45,111.37,53.60637025]
[1644339373140,54.542,111.45,111.38,1.96062593]
[1644339373340,48.542,111.45,111.38,12.94062593]
[1644339373539,0.03302108,111.46,111.38,12.94062593]
[1644339373739,43.40719198,111.44,111.39,48.43588515]
[1644339373940,43.40719198,111.44,111.38,12.69062593]
[1644339374140,43.40719198,111.44,111.38,10.73]
[1644339374545,49.40719198,111.44,111.38,10.73]
[1644339375240,47.3400763,111.42,111.38,58.91883258]
[1644339375441,47.3400763,111.42,111.38,10.73]
[1644339375643,47.5900763,111.42,111.29,116.8995]
[1644339375842,0.03302108,111.41,111.35,10.73]
[1644339376041,47.5900763,111.42,111.36,13.4664]
[1644339376242,47.5900763,111.42,111.36,24.1964]
[1644339376442,47.3400763,111.42,111.37,39.00778466]
[1644339376641,0.03302108,111.45,111.37,39.00778466]
[1644339376843,0.28302108,111.46,111.38,10.73]
[1644339377143,0.03302108,111.48,111.38,12.94062593]
[1644339377347,75.53422108,111.49,111.38,12.94062593]
[1644339377645,37.57842844,111.48,111.41,13.4618]
[1644339377841,4.486,111.47,111.38,55.8527]
[1644339378042,10.486,111.47,111.38,55.8527]
[1644339378245,10.736,111.47,111.38,55.8527]
[1644339378446,6.25,111.47,111.38,55.8527]
[1644339378644,47.74098787,111.46,111.39,46.88764854]
[1644339378844,52.47798787,111.46,111.39,57.61764854]
[1644339379043,47.99098787,111.46,111.39,57.86764854]
[1644339379244,47.99098787,111.46,111.39,57.61764854]
[1644339379743,47.99098787,111.46,111.4,13.4638]
[1644339380148,47.99098787,111.46,111.41,44.93057406]
[1644339380447,47.99098787,111.46,111.4,13.4638]
[1644339381146,53.99098787,111.46,111.39,10.73]
[1644339381351,39.86383948,111.44,111.36,10.73]
[1644339381545,4.488,111.43,111.36,10.73]
[1644339381747,0.25,111.43,111.29,6.0]
[1644339381947,0.03302108,111.42,111.33,10.73]
[1644339382147,13.471,111.42,111.33,10.73]
[1644339382346,13.721,111.42,111.33,10.73]
[1644339382546,39.37010197,111.41,111.34,54.50544514]
[1644339382850,39.62010197,111.41,111.34,54.50544514]
[1644339383046,39.37010197,111.41,111.35,1.96062593]
[1644339383247,39.62010197,111.41,111.36,43.56863582]
[1644339384047,39.37010197,111.41,111.36,43.56863582]
[1644339384348,6.0,111.42,111.36,43.56863582]
[1644339384547,0.03302108,111.43,111.36,43.56863582]
[1644339384746,19.4688,111.44,111.36,57.03703582]
[1644339385149,48.95050042,111.44,111.36,57.28703582]
[1644339385353,42.95050042,111.44,111.36,57.28703582]
[1644339385849,42.95050042,111.44,111.36,68.01703582]
[1644339386347,42.95050042,111.44,111.36,78.55403582]
[1644339386949,43.20050042,111.44,111.36,78.55403582]
[1644339389150,43.20050042,111.44,111.36,68.01703582]
[1644339391455,43.20050042,111.44,111.36,24.1984]
[1644339391855,4.488,111.43,111.36,37.4411]
[1644339392055,10.488,111.43,111.36,37.4411]
[1644339392256,6.25,111.43,111.36,39.40172593]
[1644339392459,44.23920465,111.42,111.37,41.02629779]
[1644339392655,6.25,111.43,111.37,41.02629779]
[1644339392857,4.488,111.45,111.37,56.70352372]
[1644339393062,6.0,111.45,111.37,67.43352372]
[1644339393282,0.25,111.45,111.37,67.43352372]
[1644339393557,0.25,111.45,111.37,65.47289779]
[1644339393959,0.25,111.45,111.37,67.43352372]
[1644339394157,0.25,111.45,111.37,65.47289779]
[1644339394359,44.81884107,111.46,111.37,65.47289779]
[1644339394757,44.81884107,111.46,111.39,37.96655602]
[1644339394957,44.78581999,111.46,111.41,35.94083854]
[1644339395160,6.25,111.46,111.41,35.94083854]
[1644339395360,0.25,111.46,111.41,35.94083854]
[1644339395563,24.8132,111.47,111.41,35.94083854]
[1644339395758,24.8132,111.47,111.4,10.73]
[1644339396859,38.03374916,111.46,111.41,13.4616]
[1644339397059,38.03374916,111.46,111.42,47.18157061]
[1644339397359,0.25,111.46,111.42,47.18157061]
[1644339397761,0.25,111.46,111.42,60.64307061]
[1644339397961,0.25,111.46,111.42,13.4615]
[1644339398264,25.0632,111.47,111.42,13.4615]
[1644339400063,64.56807767,111.47,111.42,13.4615]
[1644339401066,64.56807767,111.47,111.43,44.7981694]
[1644339401268,39.75487767,111.47,111.43,44.7981694]
[1644339401468,39.75487767,111.47,111.42,13.4615]
[1644339402076,0.25,111.47,111.42,13.4615]
[1644339402270,62.50767649,111.49,111.42,13.4615]
[1644339402471,49.04587649,111.49,111.42,13.4615]
[1644339402672,46.5458,111.49,111.42,13.4615]
[1644339403072,46.5458,111.49,111.43,43.41159527]
[1644339403272,2.50007649,111.5,111.44,13.4581]
[1644339403478,0.03302108,111.51,111.45,10.73]
[1644339403675,22.6671,111.53,111.45,10.73]
[1644339403676,2.53309757,111.53,111.45,10.73]
[1644339403876,0.03302108,111.54,111.45,18.93597565]
[1644339404077,0.03302108,111.54,111.46,1.95597565]
[1644339404279,3.91653149,111.55,111.47,51.52825412]
[1644339404476,39.93482033,111.54,111.47,51.52825412]
[1644339404675,39.93482033,111.54,111.47,64.98005412]
[1644339405077,45.93482033,111.54,111.47,13.4518]
[1644339405274,4.484,111.53,111.47,13.4518]
[1644339405678,42.43489682,111.54,111.47,13.4518]
[1644339406080,42.68489682,111.54,111.47,47.8624197]
[1644339406376,42.68489682,111.54,111.47,13.4518]
[1644339406579,40.18482033,111.54,111.47,13.4518]
[1644339406778,42.68489682,111.54,111.46,13.4569]
[1644339406978,4.484,111.53,111.46,13.4569]
[1644339407279,36.31033487,111.52,111.46,54.03059781]
[1644339407677,42.56033487,111.52,111.46,54.03059781]
[1644339408079,6.25,111.52,111.46,54.03059781]
[1644339408492,0.03302108,111.54,111.46,54.03059781]
[1644339408695,34.4286,111.55,111.46,13.4569]
[1644339408892,4.484,111.54,111.46,13.4569]
[1644339409092,12.98407649,111.54,111.46,13.4569]
[1644339409593,10.484,111.54,111.46,13.4569]
[1644339409793,36.12411501,111.53,111.46,47.87690692]
[1644339409991,36.12411501,111.53,111.46,13.4569]
[1644339410191,42.37411501,111.53,111.46,13.4569]
[1644339410791,13.4575,111.52,111.45,13.4578]
[1644339410992,45.21780966,111.51,111.44,10.73]
[1644339411194,51.46780966,111.51,111.41,10.73]
[1644339411400,51.46780966,111.51,111.39,10.73]
[1644339411594,47.66852108,111.5,111.36,15.2935968]
[1644339411791,13.4632,111.47,111.39,44.8726]
[1644339411993,4.487,111.46,111.4,13.4629]
[1644339412192,42.80209274,111.46,111.4,52.08330712]
[1644339412393,42.76907166,111.46,111.4,13.4629]
[1644339412593,42.76907166,111.46,111.37,10.73]
[1644339412795,42.80209274,111.46,111.37,10.73]
[1644339413096,13.4684,111.43,111.34,10.73]
[1644339413293,13.7184,111.43,111.34,10.73]
[1644339413493,39.08711456,111.42,111.34,10.73]
[1644339413693,4.489,111.41,111.34,10.73]
[1644339413901,4.489,111.41,111.33,13.437]
[1644339414194,10.739,111.41,111.33,13.437]
[1644339414597,35.9975958,111.4,111.34,38.61605709]
[1644339414796,49.7194958,111.4,111.34,38.61605709]
[1644339414995,55.7194958,111.4,111.34,38.61605709]
[1644339415196,49.7194958,111.4,111.34,38.61605709]
[1644339415396,55.7194958,111.4,111.34,38.61605709]
[1644339415899,4.489,111.41,111.34,38.61605709]
[1644339416102,4.489,111.44,111.35,12.68597565]
[1644339416302,0.03302108,111.43,111.35,12.68597565]
[1644339416506,6.0,111.44,111.35,12.68597565]
[1644339416803,45.52077801,111.44,111.36,34.44036699]
[1644339417007,63.44245693,111.44,111.37,13.4633]
[1644339417207,69.44245693,111.44,111.37,13.4633]
[1644339417704,69.69245693,111.44,111.34,10.73]
[1644339418104,69.72547801,111.44,111.34,10.73]
[1644339418705,69.72547801,111.44,111.33,26.9087]
[1644339418905,69.72547801,111.44,111.33,13.437]
[1644339419111,72.2255545,111.44,111.33,13.437]
[1644339419305,82.9555545,111.44,111.33,13.437]
[1644339419615,13.4787,111.38,111.27,24.3959]
[1644339419807,40.98495072,111.37,111.27,13.6659]
[1644339420007,40.98495072,111.37,111.26,13.4799]
[1644339420207,47.23495072,111.37,111.26,13.4799]
[1644339420406,4.491,111.36,111.23,10.73]
[1644339420610,53.604,111.36,111.23,10.73]
[1644339420806,39.62172851,111.33,111.24,41.468654]
[1644339421006,39.62172851,111.33,111.25,13.4822]
[1644339421205,39.87172851,111.33,111.26,39.20197287]
[1644339422007,39.87172851,111.33,111.27,13.4789]
[1644339422408,39.87172851,111.33,111.28,42.61722883]
[1644339422610,39.87172851,111.33,111.27,13.4789]
[1644339423111,0.25,111.33,111.27,13.4789]
[1644339423308,53.854,111.36,111.28,1.9560508]
[1644339423509,4.491,111.35,111.25,10.73]
[1644339423710,10.741,111.35,111.25,10.73]
[1644339423908,10.491,111.35,111.25,10.73]
[1644339424111,41.70435824,111.34,111.26,39.2449082]
[1644339424308,35.27165059,111.32,111.26,39.2449082]
[1644339424510,35.27165059,111.32,111.25,10.73]
[1644339424710,35.27165059,111.32,111.26,13.4809]
[1644339424910,35.27165059,111.32,111.23,10.73]
[1644339425312,35.52165059,111.32,111.23,10.73]
[1644339425510,35.52165059,111.32,111.24,45.436325]
[1644339425710,49.00295059,111.32,111.25,13.482]
[1644339426510,49.00295059,111.32,111.26,44.43118729]
[1644339426715,35.52165059,111.32,111.26,57.91208729]
[1644339428413,0.25,111.32,111.26,59.86813809]
[1644339428613,0.25,111.32,111.26,57.91208729]
[1644339428815,23.0859,111.35,111.27,1.9560508]
[1644339429013,23.0859,111.35,111.29,13.4768]
[1644339429415,40.57285085,111.33,111.29,13.4768]
[1644339429813,40.82285085,111.33,111.29,13.4768]
[1644339430012,40.82285085,111.33,111.24,12.6860508]
[1644339430216,40.82285085,111.33,111.26,13.48]
[1644339431016,40.82285085,111.33,111.26,61.58380511]
[1644339431819,54.30305085,111.33,111.26,61.58380511]
[1644339432716,40.02858862,111.31,111.26,61.58380511]
[1644339433115,40.27858862,111.31,111.26,13.48]
[1644339433516,40.27858862,111.31,111.22,44.9404]
[1644339433720,40.27858862,111.31,111.22,55.6704]
[1644339433916,40.27858862,111.31,111.22,12.6860508]
[1644339434117,40.27858862,111.31,111.23,43.48531519]
[1644339434319,40.27858862,111.31,111.25,36.89608214]
[1644339434717,40.27858862,111.31,111.26,13.4805]
[1644339435116,40.27858862,111.31,111.18,24.4102]
[1644339435318,4.494,111.3,111.21,10.73]
[1644339435716,4.744,111.3,111.22,1.9560508]
[1644339435918,0.25,111.3,111.24,44.29269372]
[1644339436727,46.27858862,111.31,111.24,44.29269372]
[1644339436922,6.25,111.31,111.24,59.73144452]
[1644339437119,0.25,111.31,111.24,59.73144452]
[1644339437320,6.0,111.31,111.24,59.73144452]
[1644339437620,6.0,111.31,111.25,10.73]
[1644339437820,6.0,111.31,111.26,42.6099197]
[1644339438020,0.25,111.33,111.26,42.6099197]
[1644339438220,45.40247845,111.34,111.26,56.0873197]
[1644339438421,49.89447845,111.34,111.26,56.0873197]
[1644339439722,63.37337845,111.34,111.26,13.4774]
[1644339439924,63.37337845,111.34,111.25,13.482]
[1644339440224,63.37337845,111.34,111.21,10.73]
[1644339440424,58.88137845,111.34,111.21,10.73]
[1644339440826,4.493,111.33,111.22,35.27881477]
[1644339441025,13.484,111.3,111.23,13.4833]
[1644339441228,13.484,111.3,111.18,15.06713013]
[1644339441229,4.493,111.29,111.18,0.024]
[1644339441424,34.92,111.29,111.17,10.754]
[1644339441629,35.36,111.29,111.13,10.73]
[1644339441826,154.85585549,111.28,111.09,2.54664921]
[1644339442052,13.489,111.26,111.11,54.44146426]
[1644339442251,4.497,111.25,111.11,13.4975]
[1644339442550,0.32243455,111.23,111.07,23.8947]
[1644339442750,0.44,111.21,111.05,1.9560508]
[1644339442952,48.9692,111.21,111.05,1.9560508]
[1644339443147,6.60675549,111.2,111.04,10.73]
[1644339443347,54.39577506,111.2,111.06,47.79916444]
[1644339443547,53.78901957,111.2,111.06,53.79916444]
[1644339443749,53.53901957,111.2,111.07,1.9560508]
[1644339443952,4.499,111.19,111.08,44.06781303]
[1644339444148,10.499,111.19,111.06,10.73]
[1644339444748,10.499,111.19,111.07,1.9560508]
[1644339444948,6.0,111.19,111.07,1.9560508]
[1644339445148,13.5,111.18,111.08,54.4302568]
[1644339445349,6.0,111.2,111.08,54.4302568]
[1644339445550,6.0,111.2,111.09,1.9560508]
[1644339445849,4.498,111.2,111.1,10.73]
[1644339446060,48.5292,111.21,111.1,10.73]
[1644339446252,48.5292,111.21,111.11,1.9560508]
[1644339446450,23.986,111.21,111.12,49.38412739]
[1644339446652,4.497,111.26,111.13,10.73]
[1644339446850,78.2,111.29,111.13,105.12801021]
[1644339447156,78.2,111.29,111.14,26.41207671]
[1644339447349,78.2,111.29,111.15,10.73]
[1644339447551,46.27114091,111.28,111.15,57.65530517]
[1644339447751,35.75191192,111.26,111.15,51.90530517]
[1644339447951,35.75191192,111.26,111.17,40.30952587]
[1644339448151,4.495,111.28,111.18,10.73]
[1644339448352,4.495,111.28,111.18,12.9360508]
[1644339448551,4.495,111.29,111.18,12.9360508]
[1644339448754,71.9938,111.3,111.18,12.9360508]
[1644339449052,34.59791964,111.28,111.19,46.55912753]
[1644339449251,34.59791964,111.28,111.19,57.53912753]
[1644339449451,34.59791964,111.28,111.19,57.28912753]
[1644339449657,34.84791964,111.28,111.2,13.4856]
[1644339449856,4.494,111.27,111.19,46.55912753]
[1644339450057,39.85161627,111.26,111.19,46.55912753]
[1644339450257,40.10161627,111.26,111.19,46.55912753]
[1644339450861,40.10161627,111.26,111.19,60.04772753]
[1644339451064,71.9938,111.3,111.19,60.04772753]
[1644339451266,71.9938,111.3,111.19,72.73377833]
[1644339451467,77.9938,111.3,111.19,70.77772753]
[1644339451668,4.494,111.29,111.19,60.04772753]
[1644339451866,13.4889,111.28,111.19,60.04772753]
[1644339452067,42.1244515,111.27,111.19,46.55912753]
[1644339452269,42.1244515,111.27,111.11,24.4678]
[1644339452468,2.10775549,111.26,111.11,24.4678]
[1644339452667,2.10775549,111.26,111.11,30.4678]
[1644339452668,4.497,111.25,111.11,30.4678]
[1644339452866,17.9896,111.25,111.12,44.9767]
[1644339453066,24.2396,111.25,111.12,44.9767]
[1644339453267,47.50310578,111.24,111.13,44.12025913]
[1644339453468,4.497,111.23,111.16,44.16267625]
[1644339453666,41.52189598,111.22,111.16,44.16267625]
[1644339453866,41.77189598,111.22,111.15,13.4926]
[1644339454068,4.497,111.21,111.11,24.4678]
[1644339454268,4.747,111.21,111.1,44.9882]
[1644339454468,10.747,111.21,111.1,44.9882]
[1644339454872,47.53217649,111.2,111.11,45.50969435]
[1644339455071,4.498,111.19,111.12,13.4965]
[1644339455370,39.2328605,111.18,111.13,41.78774828]
[1644339455570,4.748,111.19,111.13,41.78774828]
[1644339455769,0.25,111.19,111.13,41.78774828]
[1644339455973,6.25,111.19,111.13,41.78774828]
[1644339456270,6.0,111.19,111.13,55.28404828]
[1644339456473,70.7671,111.25,111.13,57.24009908]
[1644339456675,4.496,111.24,111.13,57.24009908]
[1644339456870,39.06520727,111.23,111.13,57.24009908]
[1644339457069,4.497,111.22,111.13,55.28404828]
[1644339457270,39.06520727,111.23,111.13,55.53404828]
[1644339457474,39.06520727,111.23,111.13,55.28404828]
[1644339457769,39.06520727,111.23,111.13,55.30804828]
[1644339457969,13.4929,111.24,111.13,55.30804828]
[1644339458171,4.497,111.23,111.14,0.024]
[1644339458372,4.497,111.23,111.16,13.4923]
[1644339458873,0.25,111.23,111.17,41.64014909]
[1644339459072,107.44268422,111.25,111.17,41.64014909]
[1644339459073,76.7671,111.25,111.17,41.64014909]
[1644339459274,29.1277,111.25,111.17,43.59619989]
[1644339459474,74.1771,111.27,111.17,67.81759989]
[1644339459673,76.2073,111.33,111.18,1.9560508]
[1644339459874,76.2073,111.33,111.17,52.64414909]
[1644339460176,46.31466409,111.32,111.17,52.64414909]
[1644339460374,53.46576031,111.3,111.18,0.024]
[1644339460575,4.494,111.29,111.18,0.024]
[1644339460794,40.85205753,111.28,111.21,39.23837094]
[1644339461184,6.25,111.28,111.21,39.23837094]
[1644339461580,0.25,111.28,111.21,39.23837094]
[1644339461983,69.0,111.26,111.13,13.7212]
[1644339462283,69.99938998,111.26,111.1,13.2301]
[1644339462483,13.4949,111.22,111.06,108.2363]
[1644339462790,19.7449,111.22,111.07,0.44]
[1644339462982,19.7449,111.22,111.11,13.4949]
[1644339463182,19.7449,111.22,111.12,43.64875024]
[1644339463183,6.25,111.22,111.12,43.64875024]
[1644339463482,0.25,111.22,111.12,98.99480104]
[1644339463682,29.578,111.24,111.13,1.9560508]
[1644339464083,47.7853,111.26,111.12,54.62875024]
[1644339464084,47.7853,111.26,111.15,13.4923]